[Event "*** Titled Tuesday Blitz"]
[Site "Chess.com"]
[Date "2020.05.19"]
[Round "1"]
[White "yarosavich"]
[Black "SharapovEvgeny"]
[Result "1-0"]
[WhiteElo "2698"]
[BlackElo "2367"]
[TimeControl "180+1"]
[EndTime "12:05:52 PDT"]
[Termination "yarosavich won by resignation"]

1. d4 {[%clk 0:03:00.5]} 1... d5 {[%clk 0:02:59.5]} 2. c4 {[%clk 0:03:00.2]}
2... c6 {[%clk 0:02:59.5]} 3. cxd5 {[%clk 0:02:59.9]} 3... cxd5 {[%clk
0:02:58.9]} 4. Nf3 {[%clk 0:03:00.5]} 4... Nf6 {[%clk 0:02:58.5]} 5. Nc3 {[%clk
0:03:01.1]} 5... Nc6 {[%clk 0:02:58.5]} 6. Bf4 {[%clk 0:03:01.7]} 6... a6 {[%clk
0:02:58.3]} 7. Rc1 {[%clk 0:03:01]} 7... Nh5 {[%clk 0:02:56.8]} 8. Be5 {[%clk
0:03:00.5]} 8... f6 {[%clk 0:02:55.8]} 9. Bg3 {[%clk 0:03:00.8]} 9... Nxg3
{[%clk 0:02:55.1]} 10. hxg3 {[%clk 0:03:00.4]} 10... e5 {[%clk 0:02:54.8]} 11.
e3 {[%clk 0:03:01]} 11... e4 {[%clk 0:02:50.5]} 12. Nd2 {[%clk 0:02:59.9]} 12...
Be6 {[%clk 0:02:48.3]} 13. Ndxe4 {[%clk 0:02:28.1]} 13... dxe4 {[%clk
0:02:46.6]} 14. d5 {[%clk 0:02:28.5]} 14... Bd7 {[%clk 0:02:44.9]} 15. dxc6
{[%clk 0:02:23.5]} 15... Bxc6 {[%clk 0:02:44.7]} 16. Qg4 {[%clk 0:02:10.7]}
16... Qd7 {[%clk 0:02:40]} 17. Qxd7+ {[%clk 0:01:52.9]} 17... Kxd7 {[%clk
0:02:39.3]} 18. Bc4 {[%clk 0:01:53.5]} 18... Bb4 {[%clk 0:02:37.3]} 19. Ke2
{[%clk 0:01:49.9]} 19... Bxc3 {[%clk 0:02:36.4]} 20. Rxc3 {[%clk 0:01:48.4]}
20... h6 {[%clk 0:02:35.6]} 21. Rd1+ {[%clk 0:01:46.5]} 21... Ke7 {[%clk
0:02:35.6]} 22. Bd5 {[%clk 0:01:44.5]} 22... Rac8 {[%clk 0:02:33.2]} 23. Bxc6
{[%clk 0:01:41.3]} 23... Rxc6 {[%clk 0:02:33.1]} 24. Rxc6 {[%clk 0:01:40.9]}
24... bxc6 {[%clk 0:02:32.8]} 25. Rd4 {[%clk 0:01:41.6]} 25... f5 {[%clk
0:02:32.1]} 26. Ra4 {[%clk 0:01:38.3]} 26... Rb8 {[%clk 0:02:30.7]} 27. b3
{[%clk 0:01:38.6]} 27... Rb6 {[%clk 0:02:29.7]} 28. Ra5 {[%clk 0:01:36]} 28...
g6 {[%clk 0:02:27.1]} 29. Kd2 {[%clk 0:01:34.3]} 29... Kd6 {[%clk 0:02:26.5]}
30. Kc3 {[%clk 0:01:34.5]} 30... h5 {[%clk 0:02:15.5]} 31. b4 {[%clk 0:01:32.2]}
31... Kc7 {[%clk 0:02:05.7]} 32. a3 {[%clk 0:01:30.1]} 32... Kd6 {[%clk
0:02:05.1]} 33. Kc4 {[%clk 0:01:29.7]} 33... Kc7 {[%clk 0:01:59.3]} 34. a4
{[%clk 0:01:21.7]} 34... Kd6 {[%clk 0:01:57.3]} 35. f3 {[%clk 0:01:18.4]} 35...
exf3 {[%clk 0:01:54.9]} 36. gxf3 {[%clk 0:01:18.6]} 36... Kc7 {[%clk 0:01:48.4]}
37. e4 {[%clk 0:01:17.6]} 37... fxe4 {[%clk 0:01:45.5]} 38. fxe4 {[%clk
0:01:18.2]} 38... Kd6 {[%clk 0:01:42.1]} 39. Rg5 {[%clk 0:01:17.5]} 39... Ke6
{[%clk 0:01:38.5]} 40. Rxg6+ {[%clk 0:01:11]} 40... Ke5 {[%clk 0:01:38.2]} 41.
Rg5+ {[%clk 0:01:11.5]} 41... Kxe4 {[%clk 0:01:37.9]} 42. Rxh5 {[%clk
0:01:11.9]} 42... Kf3 {[%clk 0:01:37.3]} 43. Rg5 {[%clk 0:01:10.7]} 43... Rb8
{[%clk 0:01:36]} 44. Rg6 {[%clk 0:01:06.7]} 44... Rc8 {[%clk 0:01:28.6]} 45. Kc5
{[%clk 0:01:05.2]} 45... a5 {[%clk 0:01:25.3]} 46. bxa5 {[%clk 0:01:04]} 46...
Ra8 {[%clk 0:01:25.4]} 47. Kb6 {[%clk 0:00:51.6]} 47... c5 {[%clk 0:01:24.3]}
48. a6 {[%clk 0:00:48.6]} 48... c4 {[%clk 0:01:23.4]} 49. Rc6 {[%clk 0:00:48.4]}
1-0

[Event "*** Titled Tuesday Blitz"]
[Site "Chess.com"]
[Date "2020.05.19"]
[Round "1"]
[White "Szczor"]
[Black "Aleksandar-Topalov"]
[Result "1-0"]
[WhiteElo "2637"]
[BlackElo "2338"]
[TimeControl "180+1"]
[EndTime "12:05:52 PDT"]
[Termination "Szczor won by resignation"]

1. e4 {[%clk 0:02:59.5]} 1... e6 {[%clk 0:03:00]} 2. d4 {[%clk 0:02:57.1]} 2...
d5 {[%clk 0:03:00]} 3. Nc3 {[%clk 0:02:57.5]} 3... Bb4 {[%clk 0:02:59.6]} 4. e5
{[%clk 0:02:57.4]} 4... Qd7 {[%clk 0:02:58.3]} 5. f4 {[%clk 0:02:55.4]} 5... h5
{[%clk 0:02:56.7]} 6. Nf3 {[%clk 0:02:55.5]} 6... g6 {[%clk 0:02:57.1]} 7. Be3
{[%clk 0:02:50.6]} 7... b6 {[%clk 0:02:57]} 8. a4 {[%clk 0:02:43.9]} 8... Ba6
{[%clk 0:02:56.1]} 9. Bxa6 {[%clk 0:02:41.3]} 9... Nxa6 {[%clk 0:02:55.6]} 10.
Qd3 {[%clk 0:02:41.9]} 10... Nb8 {[%clk 0:02:53.3]} 11. O-O {[%clk 0:02:42.4]}
11... Nh6 {[%clk 0:02:52.8]} 12. Nh4 {[%clk 0:02:35]} 12... Nc6 {[%clk
0:02:51.5]} 13. Nb5 {[%clk 0:02:32.1]} 13... Be7 {[%clk 0:02:46.7]} 14. Nf3
{[%clk 0:01:52.5]} 14... Nf5 {[%clk 0:02:45.3]} 15. Bf2 {[%clk 0:01:52.6]} 15...
a6 {[%clk 0:02:43.1]} 16. Na3 {[%clk 0:01:51.3]} 16... Nb4 {[%clk 0:02:42.3]}
17. Qb3 {[%clk 0:01:47]} 17... c5 {[%clk 0:02:40.4]} 18. c4 {[%clk 0:01:43]}
18... cxd4 {[%clk 0:02:34.8]} 19. Rfd1 {[%clk 0:01:36.6]} 19... O-O {[%clk
0:02:25.4]} 20. Nxd4 {[%clk 0:01:30.4]} 20... Nxd4 {[%clk 0:02:23.1]} 21. Bxd4
{[%clk 0:01:31.3]} 21... Rab8 {[%clk 0:02:21.5]} 22. Bc3 {[%clk 0:01:19.9]}
22... a5 {[%clk 0:02:03.5]} 23. Bxb4 {[%clk 0:01:16.4]} 23... axb4 {[%clk
0:02:03.5]} 24. Nb5 {[%clk 0:01:16.6]} 24... Rfd8 {[%clk 0:01:57.4]} 25. cxd5
{[%clk 0:01:16.2]} 25... exd5 {[%clk 0:01:56.6]} 26. Rac1 {[%clk 0:01:13]} 26...
Bc5+ {[%clk 0:01:56.3]} 27. Kh1 {[%clk 0:01:12.9]} 27... Qg4 {[%clk 0:01:54.5]}
28. Qg3 {[%clk 0:01:04.1]} 28... Qf5 {[%clk 0:01:32.8]} 29. Nd4 {[%clk
0:01:02.7]} 29... Qe4 {[%clk 0:01:27.5]} 30. Nc6 {[%clk 0:01:02.1]} 30... Be3
{[%clk 0:00:57.9]} 31. Re1 {[%clk 0:00:44.4]} 31... Bxf4 {[%clk 0:00:58]} 32.
Rxe4 {[%clk 0:00:44.5]} 32... Bxg3 {[%clk 0:00:58.3]} 33. Rxb4 {[%clk
0:00:42.4]} 33... Bf4 {[%clk 0:00:55.4]} 34. Rxf4 {[%clk 0:00:41.7]} 1-0

[Event "*** Titled Tuesday Blitz"]
[Site "Chess.com"]
[Date "2020.05.19"]
[Round "1"]
[White "IriBu"]
[Black "chesslh19"]
[Result "1-0"]
[WhiteElo "2519"]
[BlackElo "2191"]
[TimeControl "180+1"]
[EndTime "12:05:52 PDT"]
[Termination "IriBu won by checkmate"]

1. e4 {[%clk 0:02:59.9]} 1... c5 {[%clk 0:02:56.3]} 2. Nf3 {[%clk 0:02:58.3]}
2... d6 {[%clk 0:02:56.3]} 3. d4 {[%clk 0:02:58]} 3... cxd4 {[%clk 0:02:56.6]}
4. Nxd4 {[%clk 0:02:58.9]} 4... Nf6 {[%clk 0:02:57.1]} 5. Nc3 {[%clk 0:02:59.3]}
5... e6 {[%clk 0:02:57.5]} 6. Be3 {[%clk 0:02:58.3]} 6... a6 {[%clk 0:02:56.2]}
7. g4 {[%clk 0:02:58.4]} 7... e5 {[%clk 0:02:43.6]} 8. Nf5 {[%clk 0:02:57.5]}
8... g6 {[%clk 0:02:43.5]} 9. Bg5 {[%clk 0:02:51.3]} 9... gxf5 {[%clk
0:02:30.7]} 10. Nd5 {[%clk 0:02:49.1]} 10... Nbd7 {[%clk 0:02:01.7]} 11. exf5
{[%clk 0:02:47.7]} 11... Qa5+ {[%clk 0:01:48.9]} 12. Nc3 {[%clk 0:02:43.9]}
12... Ne4 {[%clk 0:01:43.5]} 13. Bd2 {[%clk 0:02:43.7]} 13... Nxd2 {[%clk
0:01:42.9]} 14. Qxd2 {[%clk 0:02:44.4]} 14... h5 {[%clk 0:01:13.7]} 15. g5
{[%clk 0:02:41.8]} 15... Nc5 {[%clk 0:00:51.6]} 16. Bh3 {[%clk 0:02:27.1]} 16...
Bd7 {[%clk 0:00:47.3]} 17. a3 {[%clk 0:02:26.7]} 17... Bc6 {[%clk 0:00:31.4]}
18. Rg1 {[%clk 0:02:25.9]} 18... Ne4 {[%clk 0:00:29.9]} 19. Nxe4 {[%clk
0:02:22.8]} 19... Qxd2+ {[%clk 0:00:26.2]} 20. Nxd2 {[%clk 0:02:23.7]} 20...
O-O-O {[%clk 0:00:25.1]} 21. g6 {[%clk 0:02:21.8]} 21... Rg8 {[%clk 0:00:21.3]}
22. O-O-O {[%clk 0:02:20.2]} 22... Kc7 {[%clk 0:00:20.5]} 23. gxf7 {[%clk
0:02:19]} 23... Rh8 {[%clk 0:00:17.6]} 24. f6 {[%clk 0:02:16.9]} 24... Bh6
{[%clk 0:00:17.5]} 25. Kb1 {[%clk 0:02:16.2]} 25... Bd7 {[%clk 0:00:15.8]} 26.
Bxd7 {[%clk 0:02:13.9]} 26... Kxd7 {[%clk 0:00:16]} 27. Ne4 {[%clk 0:02:07.9]}
27... Ke6 {[%clk 0:00:16.3]} 28. c4 {[%clk 0:02:08.1]} 28... d5 {[%clk
0:00:12.4]} 29. Nc5+ {[%clk 0:02:03.9]} 29... Kxf7 {[%clk 0:00:12]} 30. cxd5
{[%clk 0:02:03.6]} 30... Kxf6 {[%clk 0:00:10.6]} 31. Nxb7 {[%clk 0:02:03.4]}
31... Rb8 {[%clk 0:00:10.5]} 32. Nc5 {[%clk 0:02:03.4]} 32... Bf4 {[%clk
0:00:10.6]} 33. h3 {[%clk 0:02:01.4]} 33... Rbc8 {[%clk 0:00:08.4]} 34. Nxa6
{[%clk 0:02:00.2]} 34... h4 {[%clk 0:00:07.6]} 35. d6 {[%clk 0:01:59.9]} 35...
Ke6 {[%clk 0:00:05.7]} 36. b4 {[%clk 0:01:58.5]} 36... Kd7 {[%clk 0:00:05.8]}
37. Nc5+ {[%clk 0:01:58.1]} 37... Kc6 {[%clk 0:00:05.2]} 38. d7 {[%clk
0:01:58.5]} 38... Rcd8 {[%clk 0:00:05.1]} 39. Rg6+ {[%clk 0:01:58.3]} 39... Kb5
{[%clk 0:00:04.8]} 40. Kb2 {[%clk 0:01:57.6]} 40... Rh6 {[%clk 0:00:03.7]} 41.
Rdd6 {[%clk 0:01:55.1]} 41... Rxg6 {[%clk 0:00:02.2]} 42. Rxg6 {[%clk 0:01:56]}
42... e4 {[%clk 0:00:02.5]} 43. Kb3 {[%clk 0:01:55.7]} 43... Be5 {[%clk
0:00:02.4]} 44. a4# {[%clk 0:01:56]} 1-0

[Event "*** Titled Tuesday Blitz"]
[Site "Chess.com"]
[Date "2020.05.19"]
[Round "1"]
[White "louis198"]
[Black "Klavdia_Nik"]
[Result "1-0"]
[WhiteElo "2487"]
[BlackElo "2036"]
[TimeControl "180+1"]
[EndTime "12:05:54 PDT"]
[Termination "louis198 won on time"]

1. d4 {[%clk 0:03:00.9]} 1... Nf6 {[%clk 0:02:59.1]} 2. Bf4 {[%clk 0:03:00.6]}
2... c5 {[%clk 0:02:59.2]} 3. e3 {[%clk 0:03:00.6]} 3... b6 {[%clk 0:02:59.4]}
4. h3 {[%clk 0:02:47.1]} 4... Bb7 {[%clk 0:02:58.2]} 5. Nf3 {[%clk 0:02:47.4]}
5... g6 {[%clk 0:02:55.5]} 6. a4 {[%clk 0:02:47]} 6... Nc6 {[%clk 0:02:43.3]} 7.
Nbd2 {[%clk 0:02:45.1]} 7... Bg7 {[%clk 0:02:40.9]} 8. c3 {[%clk 0:02:45.4]}
8... O-O {[%clk 0:02:38.2]} 9. Bd3 {[%clk 0:02:40.8]} 9... d5 {[%clk 0:02:34.2]}
10. O-O {[%clk 0:02:39.7]} 10... Re8 {[%clk 0:02:15.4]} 11. Bh2 {[%clk
0:02:33.8]} 11... Rc8 {[%clk 0:01:49.8]} 12. Ne5 {[%clk 0:02:28.4]} 12... Nd7
{[%clk 0:01:47]} 13. f4 {[%clk 0:02:27.7]} 13... f6 {[%clk 0:01:45.8]} 14. Nxc6
{[%clk 0:02:17.1]} 14... Bxc6 {[%clk 0:01:44.8]} 15. f5 {[%clk 0:02:17.4]} 15...
gxf5 {[%clk 0:01:01.4]} 16. Bxf5 {[%clk 0:02:16]} 16... e6 {[%clk 0:01:01.8]}
17. Bc2 {[%clk 0:02:10.7]} 17... f5 {[%clk 0:00:42.4]} 18. Nf3 {[%clk 0:02:00]}
18... Qf6 {[%clk 0:00:29.4]} 19. Bf4 {[%clk 0:01:53]} 19... Bh6 {[%clk
0:00:20.4]} 20. Qe1 {[%clk 0:01:33]} 20... Kh8 {[%clk 0:00:12.1]} 21. Ne5 {[%clk
0:01:27.2]} 21... Bxf4 {[%clk 0:00:09.2]} 22. exf4 {[%clk 0:01:25.8]} 22... Nxe5
{[%clk 0:00:09.2]} 23. fxe5 {[%clk 0:01:25.9]} 23... Qg7 {[%clk 0:00:08]} 24.
Qh4 {[%clk 0:01:23.8]} 24... Rg8 {[%clk 0:00:05.6]} 25. Rf2 {[%clk 0:01:24.2]}
25... Qg5 {[%clk 0:00:05.4]} 26. Qxg5 {[%clk 0:01:23.1]} 26... Rxg5 {[%clk
0:00:04.8]} 27. a5 {[%clk 0:01:24]} 27... b5 {[%clk 0:00:01.5]} 28. dxc5 {[%clk
0:01:23.1]} 1-0

[Event "*** Titled Tuesday Blitz"]
[Site "Chess.com"]
[Date "2020.05.19"]
[Round "1"]
[White "Rsnr"]
[Black "pastouche06"]
[Result "1-0"]
[WhiteElo "2849"]
[BlackElo "2435"]
[TimeControl "180+1"]
[EndTime "12:05:55 PDT"]
[Termination "Rsnr won by checkmate"]

1. d4 {[%clk 0:03:00.9]} 1... Nf6 {[%clk 0:02:57.6]} 2. c4 {[%clk 0:03:01.2]}
2... e6 {[%clk 0:02:57]} 3. Nf3 {[%clk 0:03:01.4]} 3... d5 {[%clk 0:02:56.8]} 4.
g3 {[%clk 0:03:01.7]} 4... dxc4 {[%clk 0:02:56.5]} 5. Bg2 {[%clk 0:03:02]} 5...
Bd7 {[%clk 0:02:56.8]} 6. Ne5 {[%clk 0:03:02.4]} 6... Bc6 {[%clk 0:02:57.1]} 7.
Nxc6 {[%clk 0:03:03]} 7... Nxc6 {[%clk 0:02:58]} 8. O-O {[%clk 0:03:03.8]} 8...
Qd7 {[%clk 0:02:57.6]} 9. e3 {[%clk 0:03:04.4]} 9... Rd8 {[%clk 0:02:56.3]} 10.
Qc2 {[%clk 0:03:02.4]} 10... e5 {[%clk 0:02:47.6]} 11. Qxc4 {[%clk 0:02:57.7]}
11... exd4 {[%clk 0:02:43.9]} 12. Qb5 {[%clk 0:02:58.3]} 12... Nb4 {[%clk
0:01:58.2]} 13. Qxb7 {[%clk 0:02:43.9]} 13... c5 {[%clk 0:01:46.8]} 14. Qxd7+
{[%clk 0:01:45.9]} 14... Kxd7 {[%clk 0:01:29.1]} 15. Na3 {[%clk 0:01:40.6]}
15... Kc8 {[%clk 0:01:02.5]} 16. exd4 {[%clk 0:01:39.3]} 16... cxd4 {[%clk
0:01:03.4]} 17. Bg5 {[%clk 0:01:25.4]} 17... h6 {[%clk 0:01:02.5]} 18. Rac1+
{[%clk 0:01:24.4]} 18... Kb8 {[%clk 0:01:01.6]} 19. Bf4+ {[%clk 0:01:13.4]}
19... Bd6 {[%clk 0:00:58.5]} 20. Rc4 {[%clk 0:01:13.3]} 20... Nd3 {[%clk
0:00:44]} 21. Bd2 {[%clk 0:00:58.2]} 21... Nxb2 {[%clk 0:00:39]} 22. Rb1 {[%clk
0:00:54.1]} 22... Bxa3 {[%clk 0:00:39.3]} 23. Bf4+ {[%clk 0:00:54.6]} 23... Bd6
{[%clk 0:00:24.5]} 24. Rxb2# {[%clk 0:00:54.6]} 1-0

[Event "*** Titled Tuesday Blitz"]
[Site "Chess.com"]
[Date "2020.05.19"]
[Round "1"]
[White "BernardoRoselli"]
[Black "Hikaru"]
[Result "0-1"]
[WhiteElo "2462"]
[BlackElo "3187"]
[TimeControl "180+1"]
[EndTime "12:05:57 PDT"]
[Termination "Hikaru won by resignation"]

1. d4 {[%clk 0:02:59.1]} 1... Nf6 {[%clk 0:02:58.8]} 2. c4 {[%clk 0:02:58.8]}
2... e6 {[%clk 0:02:58.3]} 3. Nf3 {[%clk 0:02:58.1]} 3... d5 {[%clk 0:02:58.1]}
4. Nc3 {[%clk 0:02:57.8]} 4... Be7 {[%clk 0:02:56.2]} 5. Bg5 {[%clk 0:02:56.6]}
5... h6 {[%clk 0:02:56.1]} 6. Bh4 {[%clk 0:02:56]} 6... O-O {[%clk 0:02:55.7]}
7. e3 {[%clk 0:02:56]} 7... Ne4 {[%clk 0:02:52.6]} 8. Bxe7 {[%clk 0:02:54.8]}
8... Qxe7 {[%clk 0:02:53.5]} 9. Rc1 {[%clk 0:02:54.8]} 9... c6 {[%clk
0:02:53.5]} 10. Bd3 {[%clk 0:02:54.1]} 10... f5 {[%clk 0:02:52.4]} 11. O-O
{[%clk 0:02:50.7]} 11... Nd7 {[%clk 0:02:51.9]} 12. b4 {[%clk 0:02:47.6]} 12...
Qxb4 {[%clk 0:02:49.5]} 13. Bxe4 {[%clk 0:02:42.1]} 13... fxe4 {[%clk
0:02:48.6]} 14. Nd2 {[%clk 0:02:42]} 14... b6 {[%clk 0:02:41.7]} 15. f3 {[%clk
0:02:28.9]} 15... exf3 {[%clk 0:02:33]} 16. Rxf3 {[%clk 0:02:27.9]} 16... Ba6
{[%clk 0:02:29.4]} 17. Qb3 {[%clk 0:02:19.5]} 17... Qxb3 {[%clk 0:02:19]} 18.
axb3 {[%clk 0:02:19.1]} 18... Bb7 {[%clk 0:02:16.3]} 19. e4 {[%clk 0:02:09.6]}
19... Nf6 {[%clk 0:02:05.7]} 20. exd5 {[%clk 0:02:03]} 20... cxd5 {[%clk
0:02:03]} 21. cxd5 {[%clk 0:02:03]} 21... Nxd5 {[%clk 0:02:02.4]} 22. Nxd5
{[%clk 0:02:01.7]} 22... Bxd5 {[%clk 0:02:01.8]} 23. Rfc3 {[%clk 0:01:58.5]}
23... Rf4 {[%clk 0:01:58.3]} 24. Rd3 {[%clk 0:01:57.1]} 24... a5 {[%clk
0:01:56.6]} 25. Rc7 {[%clk 0:01:56.2]} 25... b5 {[%clk 0:01:55.3]} 26. Rc5
{[%clk 0:01:54.8]} 26... a4 {[%clk 0:01:53.9]} 27. bxa4 {[%clk 0:01:54.4]} 27...
bxa4 {[%clk 0:01:54.2]} 28. Nb1 {[%clk 0:01:51.3]} 28... Be4 {[%clk 0:01:53.2]}
29. Rd1 {[%clk 0:01:50.4]} 29... Bxb1 {[%clk 0:01:52.9]} 30. Rxb1 {[%clk
0:01:50.2]} 30... Rxd4 {[%clk 0:01:49.8]} 31. Rc7 {[%clk 0:01:50.3]} 31... Rg4
{[%clk 0:01:36.8]} 32. Rbb7 {[%clk 0:01:49.1]} 32... Rd8 {[%clk 0:01:35.4]} 33.
h3 {[%clk 0:01:49]} 33... Rg5 {[%clk 0:01:34.6]} 34. Ra7 {[%clk 0:01:47.8]}
34... Rd4 {[%clk 0:01:26.8]} 35. g4 {[%clk 0:01:37.4]} 35... h5 {[%clk
0:01:14.6]} 36. Kf2 {[%clk 0:01:36.7]} 36... Rd3 {[%clk 0:01:09.8]} 37. gxh5
{[%clk 0:01:32.9]} 37... Rxh3 {[%clk 0:01:09.4]} 38. Rxa4 {[%clk 0:01:32.2]}
38... Rhxh5 {[%clk 0:01:08.8]} 39. Re7 {[%clk 0:01:29.8]} 39... Rf5+ {[%clk
0:01:06.8]} 40. Kg3 {[%clk 0:01:29.2]} 40... Rhg5+ {[%clk 0:01:02.3]} 41. Kh4
{[%clk 0:01:28.2]} 41... Rg6 {[%clk 0:00:56.4]} 42. Re4 {[%clk 0:01:26.9]} 42...
Rff6 {[%clk 0:00:56.8]} 43. Ra4 {[%clk 0:01:22.8]} 43... Rf1 {[%clk 0:00:55.7]}
44. Kh5 {[%clk 0:01:17.2]} 44... Kh7 {[%clk 0:00:53.6]} 45. Rg4 {[%clk
0:01:12.1]} 45... Rh1+ {[%clk 0:00:53.2]} 46. Rh4 {[%clk 0:01:11.9]} 46... Rh6+
{[%clk 0:00:52.2]} 0-1

[Event "*** Titled Tuesday Blitz"]
[Site "Chess.com"]
[Date "2020.05.19"]
[Round "1"]
[White "VerdeNotte"]
[Black "angryhorse9"]
[Result "1-0"]
[WhiteElo "2819"]
[BlackElo "2424"]
[TimeControl "180+1"]
[EndTime "12:05:57 PDT"]
[Termination "VerdeNotte won by resignation"]

1. e4 {[%clk 0:02:57.7]} 1... c5 {[%clk 0:03:00]} 2. Nc3 {[%clk 0:02:57]} 2...
Nc6 {[%clk 0:02:59.3]} 3. Bb5 {[%clk 0:02:55.6]} 3... Nd4 {[%clk 0:02:57.7]} 4.
Nf3 {[%clk 0:02:54.8]} 4... a6 {[%clk 0:02:57]} 5. Bd3 {[%clk 0:02:52.8]} 5...
Nc6 {[%clk 0:02:56.7]} 6. O-O {[%clk 0:02:44.3]} 6... e6 {[%clk 0:02:56.6]} 7.
Be2 {[%clk 0:02:42.9]} 7... Nf6 {[%clk 0:02:52.7]} 8. d4 {[%clk 0:02:41.5]} 8...
cxd4 {[%clk 0:02:52.1]} 9. Nxd4 {[%clk 0:02:41.7]} 9... Qc7 {[%clk 0:02:52.8]}
10. Be3 {[%clk 0:02:38]} 10... Bb4 {[%clk 0:02:49.4]} 11. Na4 {[%clk 0:02:37.2]}
11... O-O {[%clk 0:02:34.1]} 12. c4 {[%clk 0:02:24.8]} 12... Be7 {[%clk
0:02:27.7]} 13. Nc3 {[%clk 0:02:14.3]} 13... d6 {[%clk 0:02:23.6]} 14. Rc1
{[%clk 0:02:13.3]} 14... Nb8 {[%clk 0:02:24]} 15. f4 {[%clk 0:02:00]} 15... Nbd7
{[%clk 0:02:23.8]} 16. Bf3 {[%clk 0:01:59]} 16... Rb8 {[%clk 0:02:16.4]} 17. g4
{[%clk 0:01:46.9]} 17... h6 {[%clk 0:02:06.6]} 18. h4 {[%clk 0:01:43]} 18... Ne8
{[%clk 0:01:59.7]} 19. g5 {[%clk 0:01:42.4]} 19... hxg5 {[%clk 0:01:35.2]} 20.
hxg5 {[%clk 0:01:42.1]} 20... b6 {[%clk 0:01:31.4]} 21. Kg2 {[%clk 0:01:25.8]}
21... Bb7 {[%clk 0:01:21.2]} 22. Rh1 {[%clk 0:01:23.6]} 22... g6 {[%clk
0:00:32.2]} 23. Qe1 {[%clk 0:01:19.2]} 23... Ng7 {[%clk 0:00:30.8]} 24. Qh4
{[%clk 0:01:16.6]} 24... Nh5 {[%clk 0:00:31.3]} 25. Bxh5 {[%clk 0:01:16.3]}
25... Kg7 {[%clk 0:00:30.6]} 26. Bxg6 {[%clk 0:01:10.6]} 26... Rh8 {[%clk
0:00:30.4]} 27. Bh7 {[%clk 0:01:03.9]} 1-0

[Event "*** Titled Tuesday Blitz"]
[Site "Chess.com"]
[Date "2020.05.19"]
[Round "1"]
[White "Andrii_Prydun"]
[Black "tigra"]
[Result "0-1"]
[WhiteElo "2405"]
[BlackElo "2764"]
[TimeControl "180+1"]
[EndTime "12:05:59 PDT"]
[Termination "tigra won by resignation"]

1. d4 {[%clk 0:03:00]} 1... Nf6 {[%clk 0:02:59.5]} 2. Nc3 {[%clk 0:03:00.9]}
2... g6 {[%clk 0:03:00]} 3. Bf4 {[%clk 0:02:59.7]} 3... Bg7 {[%clk 0:02:59.2]}
4. Qd2 {[%clk 0:03:00.1]} 4... c5 {[%clk 0:02:59.1]} 5. e3 {[%clk 0:02:59.1]}
5... O-O {[%clk 0:02:53.5]} 6. Nf3 {[%clk 0:02:57.5]} 6... b6 {[%clk 0:02:37.5]}
7. Be2 {[%clk 0:02:53.9]} 7... Bb7 {[%clk 0:02:37.5]} 8. O-O {[%clk 0:02:54.1]}
8... d6 {[%clk 0:02:37.7]} 9. Rad1 {[%clk 0:02:53.6]} 9... Nbd7 {[%clk
0:02:37.5]} 10. a3 {[%clk 0:02:50.7]} 10... a6 {[%clk 0:02:36]} 11. Bg3 {[%clk
0:02:49.5]} 11... b5 {[%clk 0:02:35.8]} 12. dxc5 {[%clk 0:02:43.2]} 12... Nxc5
{[%clk 0:02:35.5]} 13. Qc1 {[%clk 0:02:26.6]} 13... Rc8 {[%clk 0:02:33.4]} 14.
Nd4 {[%clk 0:02:25]} 14... Qb6 {[%clk 0:02:15.3]} 15. Bf3 {[%clk 0:02:22.4]}
15... h6 {[%clk 0:01:47.6]} 16. Bxb7 {[%clk 0:02:11.3]} 16... Qxb7 {[%clk
0:01:47.4]} 17. Nde2 {[%clk 0:02:00.7]} 17... Nce4 {[%clk 0:01:37.7]} 18. Nxe4
{[%clk 0:01:57.7]} 18... Qxe4 {[%clk 0:01:38.6]} 19. c3 {[%clk 0:01:56.6]} 19...
Nd5 {[%clk 0:01:31]} 20. Qb1 {[%clk 0:01:53.5]} 20... Qxb1 {[%clk 0:01:28.8]}
21. Rxb1 {[%clk 0:01:54.4]} 21... Nb6 {[%clk 0:01:29.5]} 22. f3 {[%clk 0:01:48]}
22... Nc4 {[%clk 0:01:27.4]} 23. Rfe1 {[%clk 0:01:45.9]} 23... Nxe3 {[%clk
0:01:25]} 24. Bf2 {[%clk 0:01:40.4]} 24... Nc4 {[%clk 0:01:23.5]} 25. Bd4 {[%clk
0:01:35.9]} 25... e5 {[%clk 0:01:19.4]} 26. Bf2 {[%clk 0:01:34.7]} 26... d5
{[%clk 0:01:19.2]} 27. Red1 {[%clk 0:01:33.4]} 27... Rfd8 {[%clk 0:01:19.1]} 28.
Kf1 {[%clk 0:01:30.3]} 28... Rd7 {[%clk 0:01:16.7]} 29. Ke1 {[%clk 0:01:29.4]}
29... Bf8 {[%clk 0:01:14.2]} 30. Rd3 {[%clk 0:01:27.3]} 30... Bc5 {[%clk
0:01:11.6]} 31. Bg3 {[%clk 0:01:22.1]} 31... f6 {[%clk 0:01:10.7]} 32. Bh4
{[%clk 0:01:03.8]} 32... Kf7 {[%clk 0:01:10]} 33. Nc1 {[%clk 0:00:46.6]} 33...
Ke6 {[%clk 0:01:08]} 34. Nb3 {[%clk 0:00:46.1]} 34... Bb6 {[%clk 0:01:07.3]} 35.
Nd2 {[%clk 0:00:45.3]} 35... Ne3 {[%clk 0:01:02.3]} 36. Bf2 {[%clk 0:00:44.4]}
36... Nxg2+ {[%clk 0:01:02.1]} 37. Kf1 {[%clk 0:00:42.1]} 37... Nf4 {[%clk
0:01:02.6]} 0-1

[Event "*** Titled Tuesday Blitz"]
[Site "Chess.com"]
[Date "2020.05.19"]
[Round "1"]
[White "rogapa"]
[Black "doctorcristian"]
[Result "1-0"]
[WhiteElo "2689"]
[BlackElo "2364"]
[TimeControl "180+1"]
[EndTime "12:06:00 PDT"]
[Termination "rogapa won on time"]

1. e4 {[%clk 0:03:00]} 1... c6 {[%clk 0:02:53]} 2. d4 {[%clk 0:02:59.4]} 2... d5
{[%clk 0:02:53.6]} 3. e5 {[%clk 0:02:59.4]} 3... Bf5 {[%clk 0:02:52.3]} 4. Nf3
{[%clk 0:02:59.5]} 4... e6 {[%clk 0:02:51.9]} 5. Be2 {[%clk 0:03:00.4]} 5... Nd7
{[%clk 0:02:51.5]} 6. O-O {[%clk 0:03:01.3]} 6... h6 {[%clk 0:02:50]} 7. Nbd2
{[%clk 0:03:00.7]} 7... Ne7 {[%clk 0:02:49.1]} 8. Nb3 {[%clk 0:03:01.6]} 8... g5
{[%clk 0:02:46.5]} 9. Bd2 {[%clk 0:03:02.5]} 9... Bg7 {[%clk 0:02:43.5]} 10. Bb4
{[%clk 0:02:59.6]} 10... a5 {[%clk 0:02:42.5]} 11. Bd6 {[%clk 0:02:58.2]} 11...
a4 {[%clk 0:02:34.2]} 12. Nc5 {[%clk 0:02:54.5]} 12... b6 {[%clk 0:02:29.9]} 13.
Nxd7 {[%clk 0:02:52.2]} 13... Qxd7 {[%clk 0:02:28.6]} 14. Ne1 {[%clk 0:02:51.3]}
14... Nc8 {[%clk 0:02:23.9]} 15. Ba3 {[%clk 0:02:50.5]} 15... c5 {[%clk
0:01:39]} 16. f4 {[%clk 0:02:44.2]} 16... gxf4 {[%clk 0:01:20.3]} 17. c3 {[%clk
0:02:43]} 17... Qc7 {[%clk 0:01:12.1]} 18. Rxf4 {[%clk 0:02:38.7]} 18... O-O
{[%clk 0:01:06.4]} 19. Rxf5 {[%clk 0:02:13.3]} 19... exf5 {[%clk 0:01:04.8]} 20.
Bd3 {[%clk 0:02:14.2]} 20... Ne7 {[%clk 0:01:03.1]} 21. Qh5 {[%clk 0:02:09.5]}
21... f6 {[%clk 0:00:58.6]} 22. e6 {[%clk 0:02:08.4]} 22... Qf4 {[%clk
0:00:46.6]} 23. Qe2 {[%clk 0:02:07.1]} 23... Rac8 {[%clk 0:00:33.7]} 24. Nf3
{[%clk 0:02:05.8]} 24... Rfe8 {[%clk 0:00:26.3]} 25. Bb5 {[%clk 0:02:04.3]}
25... Nc6 {[%clk 0:00:20.6]} 26. Bxa4 {[%clk 0:02:01.2]} 26... Qe4 {[%clk
0:00:20.5]} 27. Qf2 {[%clk 0:01:57.2]} 27... Rxe6 {[%clk 0:00:18.4]} 28. Re1
{[%clk 0:01:54.1]} 28... f4 {[%clk 0:00:07]} 29. Rxe4 {[%clk 0:01:49.9]} 29...
dxe4 {[%clk 0:00:05.2]} 30. Bb3 {[%clk 0:01:49.7]} 1-0